[Event "Championnat d'Europe Rapide"]
[Date "2024.12.08"]
[White "Aizenberg, Benny"]
[Black "Pichot, Alan"]
[WhiteElo "2425"]
[BlackElo "2637"]
[Round "9.25"]
[Result "1/2-1/2"]
[TimeControl "900+10"]

1. e4 {[%emt 00:00:03] [%clk 00:15:18]} e5 {[%clk 00:15:18]} 2. Nf3 {[%emt
00:00:02] [%clk 00:15:27]} Nc6 {[%emt 00:00:01] [%clk 00:15:26]} 3. Bb5 {[%emt
00:00:02] [%clk 00:15:35]} a6 {[%emt 00:00:04] [%clk 00:15:33]} 4. Ba4 {[%emt
00:00:01] [%clk 00:15:44]} Nf6 {[%emt 00:00:02] [%clk 00:15:41]} 5. O-O {[%emt
00:00:02] [%clk 00:15:51]} Be7 {[%emt 00:00:10] [%clk 00:15:40]} 6. Re1 {[%emt
00:00:03] [%clk 00:15:59]} b5 {[%emt 00:00:04] [%clk 00:15:47]} 7. Bb3 {[%emt
00:00:01] [%clk 00:16:07]} d6 {[%emt 00:00:02] [%clk 00:15:54]} 8. c3 {[%emt
00:00:03] [%clk 00:16:15]} O-O {[%emt 00:00:02] [%clk 00:16:02]} 9. h3 {[%emt
00:00:02] [%clk 00:16:23]} Nb8 {[%emt 00:00:04] [%clk 00:16:08]} 10. d4 {[%emt
00:00:05] [%clk 00:16:28]} Nbd7 {[%emt 00:00:01] [%clk 00:16:17]} 11. Nbd2
{[%emt 00:00:11] [%clk 00:16:27]} Bb7 {[%emt 00:00:02] [%clk 00:16:25]} 12. a4
{[%emt 00:00:15] [%clk 00:16:23]} c5 {[%emt 00:00:53] [%clk 00:15:41]} 13. Bc2
{[%emt 00:00:39] [%clk 00:15:54]} Qc7 {[%emt 00:00:39] [%clk 00:15:12]} 14. Bd3
{[%emt 00:02:01] [%clk 00:14:03]} cxd4 {[%emt 00:03:41] [%clk 00:11:42]} 15.
cxd4 {[%emt 00:00:09] [%clk 00:14:03]} exd4 {[%emt 00:00:19] [%clk 00:11:33]}
16. axb5 {[%emt 00:00:30] [%clk 00:13:43]} Nc5 {[%emt 00:00:28] [%clk 00:11:15]}
17. Bf1 {[%emt 00:00:15] [%clk 00:13:38]} axb5 {[%emt 00:02:16] [%clk 00:09:10]}
18. Rxa8 {[%emt 00:00:16] [%clk 00:13:32]} Rxa8 {[%clk 00:09:19]} 19. Bxb5
{[%emt 00:01:48] [%clk 00:11:53]} d3 {[%emt 00:01:01] [%clk 00:08:28]} 20. b4
{[%emt 00:02:33] [%clk 00:09:30]} Ncxe4 {[%emt 00:00:51] [%clk 00:07:48]} 21.
Nxe4 {[%emt 00:00:06] [%clk 00:09:33]} Bxe4 {[%emt 00:01:15] [%clk 00:06:43]}
22. Bg5 {[%emt 00:04:52] [%clk 00:04:51]} d5 {[%emt 00:03:28] [%clk 00:03:25]}
23. Bxf6 {[%emt 00:00:05] [%clk 00:04:56]} Bxb4 {[%emt 00:01:28] [%clk
00:02:08]} 24. Nd2 {[%emt 00:02:05] [%clk 00:03:00]} gxf6 {[%emt 00:01:15] [%clk
00:01:02]} 25. Nxe4 {[%emt 00:00:18] [%clk 00:02:53]} Bxe1 {[%emt 00:00:02]
[%clk 00:01:10]} 26. Nxf6+ {[%emt 00:00:58] [%clk 00:02:05]} Kh8 {[%emt
00:00:31] [%clk 00:00:49]} 27. Qxe1 {[%emt 00:00:30] [%clk 00:01:44]} Qf4 {[%emt
00:00:05] [%clk 00:00:54]} 28. Nxd5 {[%emt 00:01:26] [%clk 00:00:29]} d2 {[%emt
00:00:01] [%clk 00:01:04]} 29. Qf1 {[%emt 00:00:21] [%clk 00:00:18]} Qe5 {[%emt
00:00:17] [%clk 00:00:56]} 30. Ne3 {[%emt 00:00:15] [%clk 00:00:13]} Ra1 {[%emt
00:00:02] [%clk 00:01:04]} 31. Be2 {[%emt 00:00:10] [%clk 00:00:13]} Re1 {[%emt
00:00:20] [%clk 00:00:54]} 32. g3 {[%emt 00:00:11] [%clk 00:00:13]} f5 {[%emt
00:00:12] [%clk 00:00:51]} 33. Kg2 {[%emt 00:00:08] [%clk 00:00:15]} Qe4+ {[%emt
00:00:14] [%clk 00:00:47]} 34. Bf3 {[%emt 00:00:06] [%clk 00:00:20]} d1=Q {[%emt
00:00:41]} 35. Nxd1 {[%emt 00:00:13] [%clk 00:00:15]} Qxf3+ {[%emt 00:00:14]
[%clk 00:00:13]} 36. Kxf3 {[%emt 00:00:01] [%clk 00:00:23]} Rxf1 {[%emt
00:00:02] [%clk 00:00:22]} 37. Ne3 {[%clk 00:00:32]} Rh1 {[%emt 00:00:04] [%clk
00:00:28]} 38. Kg2 {[%emt 00:00:02] [%clk 00:00:41]} Ra1 {[%emt 00:00:02] [%clk
00:00:35]} 39. Nxf5 {[%emt 00:00:01] [%clk 00:00:50]} Kg8 {[%emt 00:00:02] [%clk
00:00:43]} 40. Ne3 {[%emt 00:00:05] [%clk 00:00:56]} Kf7 {[%emt 00:00:03] [%clk
00:00:50]} 41. f4 {[%emt 00:00:04] [%clk 00:01:02]} Ra3 {[%emt 00:00:08] [%clk
00:00:52]} 42. Kf3 {[%emt 00:00:03] [%clk 00:01:08]} Kf6 {[%emt 00:00:04] [%clk
00:00:58]} 43. g4 {[%emt 00:00:10] [%clk 00:01:08]} h6 {[%emt 00:00:07] [%clk
00:01:01]} 44. Ke4 {[%emt 00:00:17] [%clk 00:01:01]} Ra4+ {[%emt 00:00:04] [%clk
00:01:07]} 45. Kf3 {[%clk 00:01:10]} Ra3 {[%emt 00:00:07] [%clk 00:01:11]} 46.
h4 {[%emt 00:00:24] [%clk 00:00:55]} Ra5 {[%emt 00:00:05] [%clk 00:01:16]} 47.
Nc4 {[%emt 00:00:15] [%clk 00:00:50]} Rc5 {[%emt 00:00:10] [%clk 00:01:17]} 48.
Ne5 {[%emt 00:00:01] [%clk 00:00:58]} Ra5 {[%emt 00:00:09] [%clk 00:01:18]} 49.
Nc6 {[%emt 00:00:34] [%clk 00:00:34]} Ra6 {[%emt 00:00:30] [%clk 00:00:59]} 50.
Nd4 {[%emt 00:00:05] [%clk 00:00:38]} Ra5 {[%emt 00:00:02] [%clk 00:01:08]} 51.
Ke4 {[%emt 00:00:03] [%clk 00:00:44]} Rc5 {[%emt 00:00:06] [%clk 00:01:11]} 52.
Nf3 {[%emt 00:00:29] [%clk 00:00:25]} Rc4+ {[%emt 00:00:03] [%clk 00:01:19]} 53.
Nd4 {[%emt 00:00:01] [%clk 00:00:34]} Rc5 {[%emt 00:00:01] [%clk 00:01:28]} 54.
h5 {[%emt 00:00:21] [%clk 00:00:24]} Rc4 {[%emt 00:00:08] [%clk 00:01:30]} 55.
Kd3 {[%emt 00:00:04] [%clk 00:00:29]} Ra4 {[%emt 00:00:04] [%clk 00:01:36]} 56.
Ke4 {[%emt 00:00:08] [%clk 00:00:31]} Rc4 {[%emt 00:00:26] [%clk 00:01:20]} 57.
Ke3 {[%emt 00:00:11] [%clk 00:00:30]} Rc3+ {[%emt 00:00:03] [%clk 00:01:27]} 58.
Kf2 {[%emt 00:00:16] [%clk 00:00:25]} Rc4 {[%emt 00:00:02] [%clk 00:01:34]} 59.
Ke3 {[%emt 00:00:17] [%clk 00:00:18]} Rc3+ {[%clk 00:01:43]} 60. Kf2 {[%emt
00:00:08] [%clk 00:00:20]} Rc4 {[%emt 00:00:02] [%clk 00:01:51]} 61. Ne2 {[%emt
00:00:02] [%clk 00:00:28]} Ra4 {[%emt 00:00:08] [%clk 00:01:53]} 62. Ke3 {[%emt
00:00:06] [%clk 00:00:32]} Ra3+ {[%emt 00:00:04] [%clk 00:02:00]} 63. Ke4 {[%emt
00:00:01] [%clk 00:00:40]} Ra4+ {[%emt 00:00:02] [%clk 00:02:08]} 64. Nd4 {[%emt
00:00:19] [%clk 00:00:31]} Rc4 {[%emt 00:00:01] [%clk 00:02:17]} 65. Ke3 {[%emt
00:00:02] [%clk 00:00:39]} Rc3+ {[%emt 00:00:01] [%clk 00:02:26]} 66. Kf2 {[%emt
00:00:02] [%clk 00:00:48]} Rc4 {[%emt 00:00:01] [%clk 00:02:34]} 67. Ke3 {[%clk
00:00:57]} Rc3+ {[%clk 00:02:44]} 68. Ke4 {[%emt 00:00:03]} 1/2-1/2

[Site "Europe Echecs"]

[Event "Championnat d'Europe Rapide"]
[Date "2024.12.08"]
[White "Dobrikov, Marco"]
[Black "Djukic, Nikola"]
[WhiteElo "2407"]
[BlackElo "2493"]
[Round "9.26"]
[Result "1-0"]
[TimeControl "900+10"]

1. Nf3 {[%emt 00:00:03] [%clk 00:15:19]} Nf6 {[%clk 00:15:18]} 2. d4 {[%emt
00:00:02] [%clk 00:15:27]} g6 {[%emt 00:00:02] [%clk 00:15:26]} 3. c4 {[%clk
00:15:36]} Bg7 {[%emt 00:00:02] [%clk 00:15:34]} 4. Nc3 {[%emt 00:00:01] [%clk
00:15:45]} O-O {[%emt 00:00:04] [%clk 00:15:40]} 5. e4 {[%emt 00:00:01] [%clk
00:15:54]} d6 {[%emt 00:00:02] [%clk 00:15:49]} 6. Be2 {[%clk 00:16:03]} Nbd7
{[%emt 00:00:04] [%clk 00:15:55]} 7. O-O {[%emt 00:00:08] [%clk 00:16:04]} e5
{[%emt 00:00:02] [%clk 00:16:03]} 8. Be3 {[%emt 00:00:15] [%clk 00:15:59]} Re8
{[%emt 00:00:02] [%clk 00:16:12]} 9. d5 {[%emt 00:00:15] [%clk 00:15:54]} Nh5
{[%emt 00:00:02] [%clk 00:16:20]} 10. b4 {[%emt 00:00:37] [%clk 00:15:27]} Nf4
{[%emt 00:00:05] [%clk 00:16:25]} 11. c5 {[%emt 00:00:11] [%clk 00:15:26]} Bf8
{[%emt 00:01:40] [%clk 00:14:55]} 12. c6 {[%emt 00:00:17] [%clk 00:15:19]} bxc6
{[%emt 00:00:12] [%clk 00:14:53]} 13. dxc6 {[%clk 00:15:28]} Nxe2+ {[%emt
00:00:06] [%clk 00:14:57]} 14. Qxe2 {[%emt 00:00:02] [%clk 00:15:35]} Nf6 {[%emt
00:00:03] [%clk 00:15:05]} 15. Bg5 {[%emt 00:00:31] [%clk 00:15:13]} h6 {[%emt
00:00:02] [%clk 00:15:13]} 16. Bxf6 {[%emt 00:00:02] [%clk 00:15:22]} Qxf6
{[%emt 00:00:02] [%clk 00:15:21]} 17. Nd5 {[%emt 00:00:01] [%clk 00:15:30]} Qd8
{[%clk 00:15:30]} 18. Nd2 {[%emt 00:00:33] [%clk 00:15:07]} f5 {[%emt 00:00:10]
[%clk 00:15:31]} 19. f3 {[%emt 00:00:06] [%clk 00:15:11]} Be6 {[%emt 00:00:51]
[%clk 00:14:49]} 20. Qd3 {[%emt 00:00:12] [%clk 00:15:09]} h5 {[%emt 00:02:52]
[%clk 00:12:07]} 21. Nb1 {[%emt 00:00:09] [%clk 00:15:10]} Bh6 {[%emt 00:00:21]
[%clk 00:11:57]} 22. Nbc3 {[%emt 00:00:01] [%clk 00:15:18]} Rf8 {[%emt 00:00:02]
[%clk 00:12:05]} 23. a4 {[%emt 00:00:16] [%clk 00:15:13]} Rf7 {[%emt 00:02:54]
[%clk 00:09:21]} 24. b5 {[%emt 00:00:13] [%clk 00:15:10]} Qg5 {[%emt 00:01:38]
[%clk 00:07:53]} 25. a5 {[%emt 00:00:47] [%clk 00:14:33]} Raf8 {[%emt 00:00:01]
[%clk 00:08:01]} 26. Rab1 {[%emt 00:02:50] [%clk 00:11:54]} Rb8 {[%emt 00:03:54]
[%clk 00:04:17]} 27. Kh1 {[%emt 00:00:43] [%clk 00:11:21]} Qh4 {[%emt 00:00:33]
[%clk 00:03:54]} 28. Rfd1 {[%emt 00:03:30] [%clk 00:08:01]} Qf2 {[%emt 00:00:57]
[%clk 00:03:07]} 29. Qf1 {[%emt 00:00:18] [%clk 00:07:52]} Qc5 {[%emt 00:00:28]
[%clk 00:02:50]} 30. Qg1 {[%emt 00:00:05] [%clk 00:07:56]} Qxg1+ {[%emt
00:00:39] [%clk 00:02:22]} 31. Kxg1 {[%emt 00:00:02] [%clk 00:08:04]} fxe4
{[%emt 00:00:03] [%clk 00:02:28]} 32. fxe4 {[%emt 00:00:19] [%clk 00:07:56]} Kg7
{[%emt 00:00:33] [%clk 00:02:05]} 33. Rf1 {[%emt 00:00:37] [%clk 00:07:29]} Bd2
{[%emt 00:00:02] [%clk 00:02:13]} 34. Rxf7+ {[%emt 00:00:10] [%clk 00:07:29]}
Bxf7 {[%emt 00:00:01] [%clk 00:02:21]} 35. Rb2 {[%emt 00:01:49] [%clk 00:05:51]}
Bxd5 {[%emt 00:00:55] [%clk 00:01:36]} 36. Rxd2 {[%emt 00:00:03] [%clk
00:05:58]} Bc4 {[%emt 00:00:01] [%clk 00:01:45]} 37. Rb2 {[%emt 00:00:12] [%clk
00:05:56]} Kf7 {[%emt 00:00:30] [%clk 00:01:25]} 38. Rb4 {[%emt 00:00:10] [%clk
00:05:55]} Be6 {[%emt 00:00:22] [%clk 00:01:13]} 39. Kf2 {[%emt 00:00:02] [%clk
00:06:03]} Ke7 {[%emt 00:00:11]} 40. Ke3 {[%clk 00:06:12]} Bf7 {[%emt 00:00:39]
[%clk 00:00:44]} 41. Kd3 {[%emt 00:01:26] [%clk 00:04:57]} Be6 {[%emt 00:00:07]
[%clk 00:00:47]} 42. Rb2 {[%emt 00:00:18] [%clk 00:04:48]} Rf8 {[%emt 00:00:28]
[%clk 00:00:29]} 43. b6 {[%emt 00:00:41] [%clk 00:04:18]} axb6 {[%emt 00:00:01]
[%clk 00:00:37]} 44. axb6 {[%clk 00:04:28]} cxb6 {[%emt 00:00:01] [%clk
00:00:46]} 45. Rxb6 {[%emt 00:00:02] [%clk 00:04:36]} Rf2 {[%emt 00:00:14] [%clk
00:00:42]} 46. Rb7+ {[%emt 00:00:12] [%clk 00:04:34]} Kd8 {[%emt 00:00:22] [%clk
00:00:30]} 47. Nb5 {[%emt 00:01:54] [%clk 00:02:51]} 1-0

[Site "Europe Echecs"]

[Event "Championnat d'Europe Rapide"]
[Date "2024.12.08"]
[White "Kuzubov, Yuriy"]
[Black "Koelle, Tobias"]
[WhiteElo "2595"]
[BlackElo "2437"]
[Round "9.27"]
[Result "1/2-1/2"]
[TimeControl "900+10"]

1. d4 {[%emt 00:00:02] [%clk 00:15:17]} Nf6 {[%emt 00:01:14] [%clk 00:14:06]} 2.
Nf3 {[%emt 00:00:02] [%clk 00:15:25]} d5 {[%emt 00:00:03] [%clk 00:14:13]} 3. c4
{[%emt 00:00:02] [%clk 00:15:33]} e6 {[%emt 00:00:02] [%clk 00:14:21]} 4. Nc3
{[%emt 00:00:03] [%clk 00:15:40]} c5 {[%emt 00:00:04] [%clk 00:14:27]} 5. cxd5
{[%emt 00:00:06] [%clk 00:15:45]} cxd4 {[%emt 00:00:02] [%clk 00:14:35]} 6. Qxd4
{[%emt 00:00:03] [%clk 00:15:52]} exd5 {[%emt 00:00:02] [%clk 00:14:43]} 7. Bg5
{[%emt 00:00:02] [%clk 00:16:00]} Be7 {[%emt 00:00:05] [%clk 00:14:48]} 8. e3
{[%emt 00:00:02] [%clk 00:16:08]} O-O {[%emt 00:00:29] [%clk 00:14:29]} 9. Bb5
{[%emt 00:00:02] [%clk 00:16:16]} h6 {[%emt 00:00:21] [%clk 00:14:18]} 10. Bh4
{[%emt 00:00:04] [%clk 00:16:22]} Nc6 {[%emt 00:00:39] [%clk 00:13:49]} 11. Qa4
{[%emt 00:00:03] [%clk 00:16:30]} Bd7 {[%emt 00:01:06] [%clk 00:12:52]} 12. O-O
{[%emt 00:00:03] [%clk 00:16:37]} a6 {[%emt 00:00:07] [%clk 00:12:55]} 13. Bxc6
{[%emt 00:00:04] [%clk 00:16:43]} bxc6 {[%emt 00:00:17] [%clk 00:12:48]} 14. Ne5
{[%emt 00:00:03] [%clk 00:16:50]} Qc7 {[%emt 00:01:04] [%clk 00:11:53]} 15. Nxd7
{[%emt 00:00:09] [%clk 00:16:52]} Qxd7 {[%emt 00:00:04] [%clk 00:11:59]} 16.
Rfd1 {[%emt 00:00:24] [%clk 00:16:38]} Qe6 {[%emt 00:00:04] [%clk 00:12:04]} 17.
Ne2 {[%emt 00:00:28] [%clk 00:16:20]} Rab8 {[%emt 00:01:54] [%clk 00:10:20]} 18.
Nd4 {[%emt 00:02:28] [%clk 00:14:02]} Qe4 {[%emt 00:00:47] [%clk 00:09:43]} 19.
Bxf6 {[%emt 00:02:01] [%clk 00:12:11]} Bxf6 {[%emt 00:00:02] [%clk 00:09:51]}
20. b4 {[%emt 00:00:55] [%clk 00:11:26]} Rb6 {[%emt 00:01:22] [%clk 00:08:39]}
21. Rac1 {[%emt 00:00:27] [%clk 00:11:08]} Bxd4 {[%emt 00:00:05] [%clk
00:08:45]} 22. Rxd4 {[%emt 00:00:06] [%clk 00:11:12]} Qe7 {[%emt 00:00:58] [%clk
00:07:56]} 23. h3 {[%emt 00:01:24] [%clk 00:09:58]} Ra8 {[%emt 00:00:14] [%clk
00:07:53]} 24. Rc5 {[%emt 00:06:07] [%clk 00:04:00]} Qb7 {[%emt 00:00:11] [%clk
00:07:52]} 25. Qc2 {[%emt 00:00:22] [%clk 00:03:48]} Rxb4 {[%emt 00:01:36] [%clk
00:06:26]} 26. Rxb4 {[%emt 00:00:06] [%clk 00:03:52]} Qxb4 {[%emt 00:00:01]
[%clk 00:06:36]} 27. Rxc6 {[%emt 00:00:02] [%clk 00:04:00]} a5 {[%emt 00:01:39]
[%clk 00:05:07]} 28. Qd1 {[%emt 00:02:54] [%clk 00:01:15]} Rb8 {[%emt 00:01:39]
[%clk 00:03:38]} 29. Kh2 {[%emt 00:00:53] [%clk 00:00:32]} Rd8 {[%emt 00:00:26]
[%clk 00:03:22]} 30. Qd4 {[%emt 00:00:23] [%clk 00:00:20]} Qxd4 {[%emt 00:00:23]
[%clk 00:03:08]} 31. exd4 {[%clk 00:00:29]} Rb8 {[%emt 00:00:01] [%clk
00:03:17]} 32. Ra6 {[%emt 00:00:17] [%clk 00:00:23]} Rb4 {[%emt 00:00:02] [%clk
00:03:25]} 33. Rxa5 {[%emt 00:00:10] [%clk 00:00:23]} Rxd4 {[%emt 00:00:01]
[%clk 00:03:33]} 34. Kg3 {[%emt 00:00:09] [%clk 00:00:24]} g5 {[%emt 00:00:11]
[%clk 00:03:32]} 35. Kf3 {[%emt 00:00:10] [%clk 00:00:24]} Rd2 {[%emt 00:00:02]
[%clk 00:03:39]} 36. Ke3 {[%emt 00:00:05] [%clk 00:00:29]} Rb2 {[%emt 00:00:02]
[%clk 00:03:48]} 37. a4 {[%emt 00:00:08] [%clk 00:00:32]} d4+ {[%emt 00:00:07]
[%clk 00:03:50]} 38. Kxd4 {[%emt 00:00:14] [%clk 00:00:28]} Rxf2 {[%emt
00:00:02] [%clk 00:03:58]} 39. g4 {[%emt 00:00:04] [%clk 00:00:33]} Rh2 {[%emt
00:00:25] [%clk 00:03:42]} 40. Re5 {[%emt 00:00:16] [%clk 00:00:28]} Rxh3 {[%emt
00:00:18] [%clk 00:03:34]} 41. Re3 {[%emt 00:00:05] [%clk 00:00:33]} Rh1 {[%emt
00:01:09] [%clk 00:02:36]} 42. Ra3 {[%emt 00:00:23] [%clk 00:00:21]} Rg1 {[%emt
00:00:21] [%clk 00:02:24]} 43. a5 {[%emt 00:00:11] [%clk 00:00:20]} Rxg4+ {[%emt
00:00:02] [%clk 00:02:32]} 44. Kd5 {[%emt 00:00:15] [%clk 00:00:15]} Rb4 {[%emt
00:00:25] [%clk 00:02:17]} 45. a6 {[%emt 00:00:04] [%clk 00:00:21]} Rb8 {[%emt
00:00:01] [%clk 00:02:26]} 46. Kc6 {[%emt 00:00:19] [%clk 00:00:12]} Kg7 {[%emt
00:00:12] [%clk 00:02:24]} 47. a7 {[%emt 00:00:07] [%clk 00:00:15]} Ra8 {[%emt
00:00:02] [%clk 00:02:32]} 48. Kb7 {[%emt 00:00:06] [%clk 00:00:19]} Rxa7+
{[%emt 00:00:31] [%clk 00:02:11]} 49. Rxa7 {[%emt 00:00:01] [%clk 00:00:28]} Kf6
{[%emt 00:00:42] [%clk 00:01:39]} 50. Kc6 {[%emt 00:00:12] [%clk 00:00:26]} Ke5
{[%emt 00:00:11] [%clk 00:01:38]} 51. Re7+ {[%emt 00:00:14] [%clk 00:00:22]} Kf4
{[%emt 00:00:36] [%clk 00:01:12]} 52. Rxf7+ {[%emt 00:00:10] [%clk 00:00:22]}
Ke4 {[%emt 00:00:37] [%clk 00:00:45]} 53. Re7+ {[%emt 00:00:04] [%clk 00:00:28]}
Kf3 {[%emt 00:00:04] [%clk 00:00:51]} 54. Rf7+ {[%emt 00:00:25] [%clk 00:00:13]}
Ke4 {[%emt 00:00:24] [%clk 00:00:37]} 55. Rg7 {[%emt 00:00:03] [%clk 00:00:20]}
Kf3 {[%emt 00:00:08] [%clk 00:00:40]} 56. Kd5 {[%emt 00:00:17] [%clk 00:00:13]}
g4 {[%clk 00:00:49]} 57. Rf7+ {[%emt 00:00:12] [%clk 00:00:11]} Ke3 {[%emt
00:00:06] [%clk 00:00:53]} 58. Re7+ {[%emt 00:00:05] [%clk 00:00:16]} Kf3 {[%emt
00:00:29] [%clk 00:00:34]} 59. Kd4 {[%emt 00:00:12] [%clk 00:00:14]} g3 {[%emt
00:00:01] [%clk 00:00:43]} 60. Rf7+ {[%emt 00:00:03] [%clk 00:00:21]} Ke2 {[%emt
00:00:02] [%clk 00:00:51]} 61. Rg7 {[%emt 00:00:17] [%clk 00:00:14]} Kf2 {[%emt
00:00:07] [%clk 00:00:54]} 62. Ke4 {[%emt 00:00:09] [%clk 00:00:15]} g2 {[%emt
00:00:04] [%clk 00:01:01]} 63. Rxg2+ {[%emt 00:00:07] [%clk 00:00:18]} Kxg2
{[%emt 00:00:03] [%clk 00:01:07]} 64. Kf5 {[%emt 00:00:03] [%clk 00:00:27]}
1/2-1/2

[Site "Europe Echecs"]

[Event "Championnat d'Europe Rapide"]
[Date "2024.12.08"]
[White "Laurusas, Tomas"]
[Black "Baskin, Robert"]
[WhiteElo "2578"]
[BlackElo "2442"]
[Round "9.28"]
[Result "1-0"]
[TimeControl "900+10"]

1. d4 {[%clk 00:15:19]} d5 {[%emt 00:00:03]} 2. c4 {[%clk 00:15:28]} c6 {[%emt
00:00:02] [%clk 00:15:26]} 3. Nf3 {[%emt 00:00:06] [%clk 00:15:32]} Nf6 {[%emt
00:00:02] [%clk 00:15:35]} 4. Nc3 {[%emt 00:01:15] [%clk 00:14:27]} dxc4 {[%emt
00:00:02] [%clk 00:15:42]} 5. a4 {[%emt 00:00:02] [%clk 00:14:36]} Bf5 {[%emt
00:00:02] [%clk 00:15:50]} 6. Ne5 {[%emt 00:00:06] [%clk 00:14:40]} e6 {[%emt
00:00:02] [%clk 00:15:59]} 7. Nxc4 {[%emt 00:01:09] [%clk 00:13:41]} c5 {[%emt
00:00:39] [%clk 00:15:30]} 8. dxc5 {[%emt 00:00:04] [%clk 00:13:47]} Qxd1+
{[%emt 00:00:30] [%clk 00:15:10]} 9. Nxd1 {[%emt 00:00:01] [%clk 00:13:56]} Bxc5
{[%emt 00:00:19] [%clk 00:15:01]} 10. f3 {[%emt 00:00:01] [%clk 00:14:04]} Nc6
{[%emt 00:00:39] [%clk 00:14:33]} 11. e4 {[%emt 00:00:02] [%clk 00:14:12]} Bg6
{[%emt 00:00:02] [%clk 00:14:41]} 12. Be3 {[%emt 00:00:07] [%clk 00:14:15]} Bxe3
{[%emt 00:00:26] [%clk 00:14:25]} 13. Ndxe3 {[%emt 00:00:02] [%clk 00:14:23]}
Ke7 {[%emt 00:00:02] [%clk 00:14:33]} 14. Be2 {[%emt 00:01:03] [%clk 00:13:29]}
Rhd8 {[%emt 00:00:19] [%clk 00:14:25]} 15. Kf2 {[%emt 00:00:02] [%clk 00:13:37]}
Nd7 {[%emt 00:01:28] [%clk 00:13:07]} 16. a5 {[%emt 00:00:44] [%clk 00:13:04]}
Nc5 {[%emt 00:00:23] [%clk 00:12:53]} 17. Ra3 {[%emt 00:00:14] [%clk 00:13:00]}
Rac8 {[%emt 00:00:33]} 18. h4 {[%clk 00:13:01]} h5 {[%emt 00:00:40] [%clk
00:12:10]} 19. Nc2 {[%emt 00:02:09] [%clk 00:11:01]} f6 {[%emt 00:03:06] [%clk
00:09:15]} 20. Rc1 {[%emt 00:00:59] [%clk 00:10:12]} Nd7 {[%emt 00:01:56] [%clk
00:07:29]} 21. Rc3 {[%emt 00:00:14] [%clk 00:10:08]} Nce5 {[%emt 00:00:32] [%clk
00:07:07]} 22. Nxe5 {[%emt 00:00:02] [%clk 00:10:16]} Nxe5 {[%emt 00:00:01]
[%clk 00:07:16]} 23. Ne3 {[%emt 00:00:24] [%clk 00:10:02]} Rxc3 {[%emt 00:00:21]
[%clk 00:07:05]} 24. Rxc3 {[%emt 00:00:01] [%clk 00:10:10]} Be8 {[%emt 00:00:13]
[%clk 00:07:02]} 25. Rc7+ {[%emt 00:05:32] [%clk 00:04:49]} Rd7 {[%emt 00:00:01]
[%clk 00:07:11]} 26. Rxd7+ {[%emt 00:00:01] [%clk 00:04:57]} Bxd7 {[%emt
00:00:26] [%clk 00:06:55]} 27. f4 {[%emt 00:00:08] [%clk 00:04:59]} Nc6 {[%emt
00:00:01] [%clk 00:07:04]} 28. Nc4 {[%emt 00:00:03] [%clk 00:05:06]} Be8 {[%emt
00:00:12] [%clk 00:07:02]} 29. e5 {[%emt 00:00:02] [%clk 00:05:14]} Nd4 {[%emt
00:02:48] [%clk 00:04:24]} 30. Nd6 {[%emt 00:00:26] [%clk 00:04:58]} Nxe2 {[%emt
00:00:19] [%clk 00:04:15]} 31. Kxe2 {[%emt 00:00:02] [%clk 00:05:06]} Bc6 {[%emt
00:00:02] [%clk 00:04:23]} 32. g3 {[%emt 00:00:36] [%clk 00:04:40]} Kd7 {[%emt
00:00:19] [%clk 00:04:13]} 33. Ke3 {[%emt 00:01:15] [%clk 00:03:35]} f5 {[%emt
00:00:07] [%clk 00:04:16]} 34. Kd4 {[%emt 00:00:29] [%clk 00:03:16]} b6 {[%clk
00:04:25]} 35. Kc4 {[%emt 00:01:16] [%clk 00:02:09]} Kc7 {[%emt 00:00:47] [%clk
00:03:48]} 36. Kb4 {[%emt 00:00:26] [%clk 00:01:54]} Kd8 {[%emt 00:00:04] [%clk
00:03:55]} 37. Nb5 {[%emt 00:00:44] [%clk 00:01:19]} 1-0

[Site "Europe Echecs"]